Cogmind - Beta 11.1 *** ADVENTURER MODE // 2022.12.13 @ 10:06:46 Player: wchar_t Result: Destroyed by 8R-AWN with 8R-AWN's Boregun Performance ------------- Evolutions (1) 500 Regions Visited (5) 1000 Robots Destroyed (51) 255 Value Destroyed (1538) 1538 Prototype IDs (0) 0 Alien Tech Used (0) 0 Bonus (30) 30 TOTAL SCORE: 3323 Bonus ------- High Alert Combat Kills 30 Cogmind --------- Core Integrity 0/400 Matter 257/300 Energy 100/100 System Corruption 6% Temperature Cool (0) Movement Core (400) Ox7 Location -9/Exiles Parts ------- > --- POWER (1) -------- (None) > --- PROPULSION (2) --- (None) > --- UTILITY (4) ------ Large Storage Unit Targeting Computer > --- WEAPON (2) ------- Heavy Hammer > --- INVENTORY (15) --- Light Ion Engine Light Ion Engine Improved Ion Engine Aluminum Leg Aluminum Leg Carbon-fiber Leg Carbon-fiber Leg Signal Interpreter Assault Rifle Rocket Launcher Peak State ------------ > --- POWER ------------ Light Nuclear Core > --- PROPULSION ------- Carbon-fiber Leg Carbon-fiber Leg > --- UTILITY ---------- Large Storage Unit High-capacity Battery Targeting Computer Hardened Light Armor Plating > --- WEAPON ----------- Heavy EM Pulse Gun Heavy EM Pulse Gun > --- INVENTORY -------- Light Ion Engine Light Ion Engine Aluminum Leg Improved Aluminum Leg Carbon-fiber Leg Carbon-fiber Leg Signal Interpreter Medium Laser Light EM Pulse Cannon Assault Rifle Grenade Launcher [Rating: 19] Favorites ----------- Power Light Nuclear Core Engine Light Ion Engine Power Core Light Nuclear Core Propulsion Aluminum Leg Leg Aluminum Leg Utility Large Storage Unit Device Improved Terrain Scanner Storage Large Storage Unit Processor Targeting Computer Protection Hardened Light Armor Plating Weapon Heavy EM Pulse Gun Energy Gun Heavy EM Pulse Gun Energy Cannon Light EM Pulse Cannon Ballistic Gun Assault Rifle Launcher Grenade Launcher Impact Weapon Heavy Hammer Build | -11 -10 -10 -9 -9 -9 ------- Run | Scr Mat Min Mat Min Exi Slots Evolved 2 | . . . 2 . . Power . | . . . . . . Propulsion . | . . . . . . Utility 2 | . . . 2 . . Weapon . | . . . . . . Parts Attached 51 | 7 12 3 13 10 6 Power 6 | 1 2 1 1 1 . Engine 4 | 1 1 . 1 1 . Core 2 | . 1 1 . . . Reactor . | . . . . . . Propulsion 14 | 2 5 . 4 3 . Treads . | . . . . . . Leg 14 | 2 5 . 4 3 . Wheel . | . . . . . . Hover . | . . . . . . Flight . | . . . . . . Utility 9 | 2 3 . 3 1 . Device 1 | 1 . . . . . Storage 4 | 1 2 . 1 . . Processor 1 | . . . 1 . . Hackware . | . . . . . . Protection 3 | . 1 . 1 1 . Artifact . | . . . . . . Weapon 22 | 2 2 2 5 5 6 Energy Gun 14 | 1 2 2 3 2 4 Energy Cannon 2 | . . . 1 1 . Ballistic Gun 1 | 1 . . . . . Ballistic Cannon . | . . . . . . Launcher 4 | . . . 1 2 1 Special Weapon . | . . . . . . Impact Weapon 1 | . . . . . 1 Slashing Weapon . | . . . . . . Piercing Weapon . | . . . . . . Special Melee Weapon . | . . . . . . Unidentified Prototypes . | . . . . . . Corrupted Parts 2 | . . 1 1 . . System Corruption 10 | . . 8 2 . . Parts Lost 16 | . . 1 2 4 9 Power 2 | . . . 1 . 1 Propulsion 3 | . . . . 1 2 Utility 3 | . . . . 1 2 Weapon 8 | . . 1 1 2 4 Highest Loss Streak 8 | . . 1 1 2 8 To Critical Strikes 6 | . . . . . 6 Average Slot Usage (%) 96 | . 96 99 96 99 86 Engine 7 | . 5 12 2 11 9 Core 4 | . 8 1 7 . . Leg 23 | . 28 28 22 21 17 Device 1 | . 4 . . . . Storage 18 | . 13 14 21 22 18 Processor 6 | . . . 10 11 11 Protection 10 | . 6 14 10 10 7 Energy Gun 19 | . 20 27 15 18 18 Energy Cannon 1 | . . . 5 . . Ballistic Gun 1 | . 7 . . . . Launcher 1 | . . . . 3 1 Naked Turns . | . . . . . . Heaviest Build 43 | 13 36 36 43 42 37 Greatest Support 30 | 20 20 20 30 25 23 Greatest Overweight (x) 9 | . 1 1 2 3 9 Average Overweight (x) . | . . 1 1 1 1 Largest Inventory Capacity 15 | 8 15 15 15 15 15 Average Capacity 14 | 7 12 15 15 15 15 Most Carried 15 | . 14 13 15 13 13 Average Carried 11 | . 10 12 11 12 12 Final Capacity 15 | 8 15 15 15 15 15 Final Carried 13 | . 13 13 13 13 10 Class Distribution -------------------- 100% | Mutant Dominant Class ---------------- Mutant | -10/Materials Mutant | -10/Mines Mutant | -9/Materials Mutant | -9/Mines Mutant | -9/Exiles Resources | -11 -10 -10 -9 -9 -9 ----------- Run | Scr Mat Min Mat Min Exi Matter Collected 777 | 111 297 60 85 205 19 Remotely . | . . . . . . Salvage Created 1851 | 14 402 383 764 238 50 Parts 122 | 1 31 12 52 13 13 Haulers Intercepted 1 | . 1 . . . . Recyclers Shooed . | . . . . . . Parts Field Recycled . | . . . . . . Retrieved Matter . | . . . . . . Parts Self-Destructed . | . . . . . . Prevented . | . . . . . . Kills | -11 -10 -10 -9 -9 -9 ------- Run | Scr Mat Min Mat Min Exi Combat Hostiles Destroyed 48 | . 7 8 18 8 7 Guns 24 | . 6 5 6 5 2 Cannons 1 | . . . 1 . . AOE 19 | . . 2 10 2 5 Classes Destroyed 12 | 1 4 . 3 3 1 Builder 1 | . 1 . . . . Tunneler 2 | 1 . . . 1 . Hauler 1 | . 1 . . . . Recycler 1 | . . . . 1 . Watcher 4 | . 1 . 3 . . Swarmer 8 | . . . 3 5 . Grunt 24 | . 7 8 9 . . Brawler 1 | . . . . 1 . Duelist 2 | . . . 2 . . Sentry 4 | . . . 4 . . Demolisher 2 | . . . . 2 . Assembled 7 | . . . . . 7 Best Kill Streak 8 | 1 3 2 7 6 8 Combat Bots Only 7 | . 3 2 7 4 7 Max Kills in Single Turn 5 | 1 2 1 4 3 5 Gunslinging . | . . . . . . Exploded 4 | . . 1 4 2 4 Melee . | . . . . . . Uniques/NPCs Destroyed 1 | . . . . . 1 EX-BIN (-9/Exiles) Combat | -11 -10 -10 -9 -9 -9 -------- Run | Scr Mat Min Mat Min Exi Damage Taken 2228 | . 168 265 344 643 808 Core 424 | . . 20 52 157 195 Absorbed by Shields . | . . . . . . Regen/Repaired (Parts) 115 | . . . 115 . . Core Remaining (%) 96 | 100 . 92 . . . Volleys Fired 107 | 4 19 23 31 14 16 Largest 2 | 2 2 2 2 2 2 Hottest 101 | 70 90 90 101 101 90 Shots Fired 197 | 8 38 44 61 24 22 Gun 170 | 8 38 44 43 18 19 Cannon 20 | . . . 16 4 . Launcher 7 | . . . 2 2 3 Special . | . . . . . . Kinetic 18 | 4 14 . . . . Thermal 18 | 4 14 . . . . Explosive 7 | . . . 2 2 3 Electromagnetic 154 | . 10 44 59 22 19 Robot Hit Streak 16 | 8 13 15 16 8 11 Robot Miss Streak 2 | . 2 2 1 1 2 Penetration Max . | . . . . . . Secondary Targets 2 | . . 2 . . . Max Gunslinging Chain 1 | . . 1 . . . Shots Hit Robots 158 | 8 31 26 49 18 26 Core Hits 89 | 1 17 11 28 11 21 Critical Kills . | . . . . . . Critical Parts Destroyed 3 | 1 . . . . 2 Critical Strikes 6 | 1 1 . 1 . 3 Burn 1 | . 1 . . . . Destroy 1 | 1 . . . . . Corrupt 1 | . . . 1 . . Smash 3 | . . . . . 3 Melee Attacks 10 | . . . . . 10 Impact 10 | . . . . . 10 Slashing . | . . . . . . Piercing . | . . . . . . Sneak Attacks . | . . . . . . Combat Hostiles . | . . . . . . Follow-up Attacks . | . . . . . . Damage Inflicted 3460 | 109 486 520 1313 402 630 Guns 1695 | 102 444 423 523 153 50 Cannons 302 | . . . 226 76 . Explosions 1141 | . 31 97 547 168 298 Melee 282 | . . . . . 282 Ramming 40 | 7 11 . 17 5 . Kinetic 214 | 53 161 . . . . Thermal 594 | 49 168 97 280 . . Explosive 733 | . . . 267 168 298 Electromagnetic 1597 | . 146 423 749 229 50 Impact 282 | . . . . . 282 Slashing . | . . . . . . Piercing . | . . . . . . Highest Corruption 9 | . 1 9 2 6 6 Average Corruption 3 | . 1 1 2 4 6 Corruption Purged . | . . . . . . Corruption Blocked . | . . . . . . Effects 47 | . 4 6 2 25 10 Message Errors 10 | . 1 1 1 4 3 Matter Fused 9 | . 2 . . 6 1 Heat Flow Errors 10 | . . 1 . 8 1 Energy Discharges 6 | . . 1 1 2 2 Parts Rejected 1 | . 1 . . . . Data Loss (minor) 2 | . . 1 . 1 . Data Loss (major) 4 | . . . . 2 2 Misfires 4 | . . 2 . 1 1 Alerts 1 | . . . . 1 . Overload Shots . | . . . . . . Overflow Damage 90 | . . . 4 40 46 Projectiles . | . . . . . . Explosions 44 | . . . 4 40 . Melee 46 | . . . . . 46 Knockbacks 4 | 1 . . . . 3 Impact 4 | 1 . . . . 3 Kinetic . | . . . . . . Secondary . | . . . . . . Self-Inflicted Damage 88 | . 21 4 63 . . Shots 4 | . 1 1 2 . . Rammed . | . . . . . . Targets Rammed 11 | 1 5 . 3 2 . Kicked 11 | 1 5 . 3 2 . Crushed . | . . . . . . Highest Temperature 440 | 36 165 381 440 257 143 Average Temperature 106 | 19 51 151 127 92 47 Received Heat Transfer 531 | . 126 195 210 . . Effects 5 | . . 2 3 . . Shutdowns 1 | . . . 1 . . Energy Bleed 1 | . . 1 . . . Interference 1 | . . 1 . . . Short Circuit 1 | . . . 1 . . Damage (minor) 1 | . . . 1 . . Siege Activations . | . . . . . . Robots Corrupted 4 | . 1 1 1 1 . Combat Hostiles 4 | . 1 1 1 1 . Parts Fried 6 | . 2 . 2 2 . Impact Corruptions 2 | . . . . . 2 Robots Melted . | . . . . . . Combat Hostiles . | . . . . . . Parts Melted 2 | . 1 . 1 . . Heat Transferred 1129 | 148 531 50 400 . . Parts Sabotaged . | . . . . . . Parts Stolen . | . . . . . . Parts Stripped . | . . . . . . Power Chain Reactions 7 | . 1 1 5 . . Missiles Intercepted . | . . . . . . Alert | -11 -10 -10 -9 -9 -9 ------- Run | Scr Mat Min Mat Min Exi Peak Influence 487 | 5 154 204 487 331 . Initial 99 | . 2 . 27 99 . Average 133 | . 60 97 266 111 . Maximum Alert Level 2 | . . 1 2 1 . Low Security (%) 79 | 100 100 92 40 88 . Level 1 10 | . . 7 23 11 . Level 2 9 | . . . 36 . . Level 3 . | . . . . . . Level 4 . | . . . . . . Level 5 . | . . . . . . High Security . | . . . . . . Max Security . | . . . . . . Squads Dispatched 3 | . 1 . 2 . . Investigation 2 | . 1 . 1 . . Extermination . | . . . . . . Reinforcement 1 | . . . 1 . . Assault . | . . . . . . Garrison . | . . . . . . Intercept . | . . . . . . Searches Triggered . | . . . . . . Construction Impeded 1 | . . . 1 . . Haulers Reinforced . | . . . . . . Active Scanning Responses . | . . . . . . Cargo Convoy Interrupts . | . . . . . . Stealth | -11 -10 -10 -9 -9 -9 --------- Run | Scr Mat Min Mat Min Exi Distress Signals 3 | . . . 3 . . Communications Jammed . | . . . . . . Distress Signals . | . . . . . . Times Spotted 67 | . 14 9 27 10 7 Peak Tracking Total 10 | . 4 2 8 6 10 Tactical Retreats 5 | . . 2 1 2 . Traps | -11 -10 -10 -9 -9 -9 ------- Run | Scr Mat Min Mat Min Exi Traps Triggered 1 | . 1 . . . . Indirectly . | . . . . . . Trap Hack Attempts . | . . . . . . Triggered . | . . . . . . Disarmed . | . . . . . . Reprogrammed . | . . . . . . Reused . | . . . . . . Traps Extracted . | . . . . . . Installed . | . . . . . . Triggered 1 | . . . 1 . . Machines | -11 -10 -10 -9 -9 -9 ---------- Run | Scr Mat Min Mat Min Exi Machines Disabled 6 | . . 2 1 . 3 Max in Single Turn 2 | . . 1 1 . 2 Machines Sabotaged . | . . . . . . Garrisons Compromised . | . . . . . . Overloaded Fab Kills . | . . . . . . Hacking | -11 -10 -10 -9 -9 -9 --------- Run | Scr Mat Min Mat Min Exi Machines Accessed 3 | . 2 . 1 . . Terminals 2 | . 2 . . . . Fabricators . | . . . . . . Repair Stations 1 | . . . 1 . . Recycling Units . | . . . . . . Scanalyzers . | . . . . . . Garrison Access . | . . . . . . Total Hacks 8 | . 6 . 2 . . Successful 2 | . . . 2 . . Failed 6 | . 6 . . . . Catastrophic 1 | . 1 . . . . Database Lockouts . | . . . . . . Manual 6 | . 6 . . . . Terminals 6 | . 6 . . . . Fabricators . | . . . . . . Repair Stations 2 | . . . 2 . . Recycling Units . | . . . . . . Scanalyzers . | . . . . . . Garrison Access . | . . . . . . Terminal Hacks . | . . . . . . Fabricator Hacks . | . . . . . . Repair Station Hacks 2 | . . . 2 . . Scan Component 1 | . . . 1 . . Repair 1 | . . . 1 . . Recycling Unit Hacks . | . . . . . . Scanalyzer . | . . . . . . Garrison Access Hacks . | . . . . . . Unauthorized Hacks . | . . . . . . Terminals . | . . . . . . Fabricators . | . . . . . . Repair Stations . | . . . . . . Recycling Units . | . . . . . . Scanalyzers . | . . . . . . Garrison Access . | . . . . . . Data Cores Recovered . | . . . . . . Used . | . . . . . . Hacking Detections 3 | . 2 . 1 . . Full Trace Events 1 | . 1 . . . . Feedback Events . | . . . . . . Feedback Blocked . | . . . . . . Robot Schematics Acquired . | . . . . . . Robots Built . | . . . . . . Authchips . | . . . . . . Time . | . . . . . . Total Robot Build Rating . | . . . . . . Part Schematics Acquired . | . . . . . . Parts Built . | . . . . . . Authchips . | . . . . . . Time . | . . . . . . Total Part Build Rating . | . . . . . . Parts Repaired 1 | . . . 1 . . Time 32 | . . . 32 . . Parts Recycled . | . . . . . . Recycled Matter . | . . . . . . Retrieved Matter . | . . . . . . Retrieved Components . | . . . . . . Parts Scanalyzed . | . . . . . . Part Schematics Acquired . | . . . . . . Parts Damaged . | . . . . . . Bothacking | -11 -10 -10 -9 -9 -9 ------------ Run | Scr Mat Min Mat Min Exi Used RIF Installer . | . . . . . . Robots Hacked . | . . . . . . Non-combat . | . . . . . . Combat . | . . . . . . Robot Hacks Applied . | . . . . . . Relay Couplers Released . | . . . . . . Fabnet Peak Effective % . | . . . . . . Robots Rewired . | . . . . . . Allies Hacked . | . . . . . . Hacks Repelled . | . . . . . . Allies | -11 -10 -10 -9 -9 -9 -------- Run | Scr Mat Min Mat Min Exi Total Allies 1 | . . . . 1 . Largest Group 1 | . . . . 1 . Highest-Rated Group 31 | . . . . 31 . Highest-Rated Ally 31 | . . . . 31 . Total Orders . | . . . . . . Ally Attacks . | . . . . . . Total Damage . | . . . . . . Kills . | . . . . . . Allies Corrupted . | . . . . . . Allies Melted . | . . . . . . Intel | -11 -10 -10 -9 -9 -9 ------- Run | Scr Mat Min Mat Min Exi Robot Analysis Total . | . . . . . . Derelict Logs Recovered 4 | . . 3 . 1 . Drone Launches . | . . . . . . Drone Recoveries . | . . . . . . Exploration | -11 -10 -10 -9 -9 -9 ------------- Run | Scr Mat Min Mat Min Exi Turns Passed 3930 | 83 889 612 916 1047 383 Spaces Moved 1773 | 51 504 285 317 466 150 Core 11 | 2 . . . . 9 Treads . | . . . . . . Legs 1762 | 49 504 285 317 466 141 Wheels . | . . . . . . Hover . | . . . . . . Flight . | . . . . . . Fastest Speed 50 | 50 120 190 190 190 190 Average Speed 183 | 117 154 190 210 190 207 Slowest Speed 500 | 120 190 190 260 330 500 Overloaded Moves . | . . . . . . Propulsion Burnouts . | . . . . . . Robots Hopped . | . . . . . . Cave-ins Triggered . | . . . . . . Exploration Rate (%) 50 | 3 81 59 36 78 44 Regions Visited 5 Branch Regions 3 Pre-discovered Areas . | . . . . . . Known Exits Taken . | . . . . . . Unknown Exits Taken 5 | 1 1 1 1 1 . Scrap Searched 1 | . . 1 . . . Spaces Dug . | . . . . . . Terrain Destroyed 69 | . 2 17 28 4 18 Melee . | . . . . . . Projectile . | . . . . . . AOE 69 | . 2 17 28 4 18 Terrain Rammed . | . . . . . . Walls Destroyed . | . . . . . . Machines Disabled . | . . . . . . Actions | -11 -10 -10 -9 -9 -9 --------- Run | Scr Mat Min Mat Min Exi Total 2237 | 62 579 315 502 597 182 Wait 240 | . 14 1 122 103 . Move 1768 | 50 503 284 316 465 150 Hop . | . . . . . . Pick Up 21 | . 11 1 8 1 . Fast Attach 22 | 7 7 1 5 2 . Attach 11 | . . 2 3 3 3 Detach 10 | . 6 2 1 1 . Swap 18 | . 5 . 5 5 3 Drop 19 | . 9 1 8 1 . Fire 107 | 4 19 23 31 14 16 Melee 10 | . . . . . 10 Ram . | . . . . . . Kick 11 | 1 5 . 3 2 . Crush . | . . . . . . Escape Stasis . | . . . . . . Rewire . | . . . . . . Trap . | . . . . . . Miscellaneous . | . . . . . . Route ------- -11/Scrapyard -10/Materials (discovered 3 exits: *Mat x2 / [*Min]) -10/Mines -9/Materials -9/Mines (discovered 4 exits: [*Mat x2] / [*Exi] / [*Zio]) -9/Exiles History --------- Turn | Location | Event 6 | -11/Scrapyard | Discovered new exit (range 16) 84 | -11/Scrapyard | Entered Materials 301 | -10/Materials | Build established: Mutant 323 | -10/Materials | Discovered new exit (range 3) 492 | -10/Materials | Discovered new exit (range 9) 718 | -10/Materials | Discovered new exit (range 11) 973 | -10/Materials | Entered Mines 982 | -10/Mines | Met a Derelict bent on vengeance 1199 | -10/Mines | Learned Materials trap positions 1219 | -10/Mines | Learned Materials trap positions 1313 | -10/Mines | Learned Materials interactive machine intel 1576 | -10/Mines | Discovered new exit (range 5) 1585 | -10/Mines | Entered Materials 1585 | -9/Materials | Evolved 2 slots: Utility x2 1586 | -9/Materials | Loaded intel: 22 trap records 1587 | -9/Materials | Loaded intel: 18 interactive machine locations 2075 | -9/Materials | Destroyed 7 combat bots 2347 | -9/Materials | Repaired Hrd. Light Armor Plating 2483 | -9/Materials | Discovered new exit (range 8) 2501 | -9/Materials | Entered Mines 2535 | -9/Mines | A Derelict revealed a hidden shortcut to a safe place 2559 | -9/Mines | Assembled infested the area 2651 | -9/Mines | Learned Materials security intel 2923 | -9/Mines | Core integrity fell below 50% 2951 | -9/Mines | Received a Rocket Launcher from a helpful Derelict 3008 | -9/Mines | Discovered new exit (range 9) 3013 | -9/Mines | Received a Mining Laser from a helpful Derelict 3162 | -9/Mines | Discovered new exit (range 6) 3537 | -9/Mines | Deemed a non-threat by the Exiles lab entrance 3537 | -9/Mines | Discovered new exit (range 5) 3548 | -9/Mines | Entered Exiles 3592 | -9/Exiles | Met 8R-AWN 3626 | -9/Exiles | Met EX-HEX 3678 | -9/Exiles | Met EX-BIN 3733 | -9/Exiles | Met EX-DEC 3783 | -9/Exiles | Attacked by the Exiles 3798 | -9/Exiles | Destroyed EX-BIN 3835 | -9/Exiles | Destroyed 7 combat bots 3891 | -9/Exiles | Core integrity fell below 20% 3906 | -9/Exiles | Lost 8 parts (1p2n2u3w) 3931 | -9/Exiles | Destroyed by 8R-AWN with 8R-AWN's Boregun Last Messages --------------- 03898_ Penetrated by HV Slug. 03899_ System corrupted: Energy discharge (-28). 03902_ Penetrated by HV Slug. 03902_ HV Slug penetrates Wall. 03906_ 8R-AWN suffers critical hit (Smash). 03906_ Destroyed Prototype Processor. 03906_ 8R-AWN system corrupted by crushing effect. 03906_ Penetrated by HV Slug. 03909_ 8R-AWN knocked back. 03911_ Penetrated by HV Slug. 03916_ The unstable cave ceiling collapses. 03916_ 8R-AWN suffers critical hit (Smash). 03919_ Penetrated by HV Slug. 03919_ Critical hit (Destroy). 03919_ Med. Laser destroyed. 03919_ Penetrated by HV Slug. 03921_ 8R-AWN knocked back. 03923_ Penetrated by HV Slug. 03923_ HV Slug penetrates Machine. 03931_ Penetrated by HV Slug. Map ----- +----------------------------------------------------+ | ????????????????????# #?#### ####????????????? | | ????????????????????# #?#" " """#????????????? | | ????????????????????# #?# " """#????????????? | | ????????????????????# #?#" """#????????????? | | ???????????????????## ### ""#????????????? | | ???????????????????#" %" "#????????????? | | ???????????????????#" """#????????????? | | ???????????????????#" "#????????????? | | ???????????????????# ""#????????????? | | ???????????????????#" ""#????????????? | | ???????????????????# """##???????????? | | ??????"????????????# """"""??????????? | | ??????"?????????????# ""###??????????? | | ?????"" ???????????## """"???????????? | | ?????"" ???????????# * # ???????????? | | ????? ???????????##" ! """#????????????? | | ??????" ??????????#;" %! ## ####????????????? | | ??????# ?????????##" ! # ##???????????????? | | ????### ###?######" == # ##????????????????? | | #####X# #"###""""""" ;#####?????????????????? | | """""" " "" ;#???#########????????? | | "" """ " #####"""""""""##?????? | | " " " """ """"##????? | | "" " #????? | | " """#????? | | @ " "#????? | | " "##???? | | g ""###?? | | "" """""" """#?? | | ######""" "#?? | | ""##????#####""" ##? | | " """##?????????##""" ## | | """##???????????#"""" # | | ""#????????????#"" | | #?????????????"""" | | ????????????"" | | ? ???????????" | | ??? ?????????? | | ?????? ???????????? # | | ???????? ???????????? " ## | | ??????????????????????? "" """ ""#? | | ????????????????????????##""" " " ""#" "##? | | ??????????????????????????####""" """##"""""""##?? | | ?????????????????????????????###""""#?#########??? | | ???????????????????????????????####??????????????? | | ?????????????????????????????????????????????????? | | ?????????????????????????????????????????????????? | | ?????????????????????????????????????????????????? | | ?????????????????????????????????????????????????? | | ?????????????????????????????????????????????????? | +----------------------------------------------------+ Best States ------------- Heat Dissipation 28 Energy Generation 14 Energy Capacity 515 Matter Stores 300 Matter Capacity 300 Sight Range 16 Terrain Scan Range 16 Terrain Scan Density 10 Armor Coverage 150 Resistance: KI 20 Resistance: TH 20 Resistance: EX 20 Resistance: EM 20 Resistance: I 20 Resistance: S 20 Resistance: P 20 Evasion (%) 55 Targeting Accuracy 5 Offensive Hacking 10 Item Schematics ----------------- None Robot Schematics ------------------ None Fabricated ------------ Nothing Alien Tech Used ----------------- None Achievements -------------- None Challenges ------------ None Game ------ Seed LegAdvancedMantle Manual? 0 Play Time 00:26:44 Cumulative 61.1 hours Start 2022.12.11 @ 21:41:16 End 2022.12.13 @ 10:06:46 Sessions 2 Manual Loads 0 Difficulty Adventurer Special Mode None Game No. 9 Rogue 0 Adventurer 6 Explorer 3 Win Type - Total 3 Types 1/0/1/1/0/0/0/0/0 Lore% 53 Gallery% 45 Achievement% 51 Wizard Run 0 Options --------- ASCII 1 Keyboard 1 Movement Vi Keybinds 0 Fullscreen 1 Font 18/CogWide Map View 76x50 Tactical HUD 1 Map Filters NONE Filters NONE Steam X RUN: 7f47e11f-a9c4-4d49-9649-bb773d231f56